[Event "ETCC Women 2013"]
[Site "Warsaw"]
[Date "2013.11.11"]
[Round "4"]
[White "Alexandrova, Olga"]
[Black "Worek, Joanna"]
[Result "1/2-1/2"]
[ECO "D30"]
[WhiteElo "2427"]
[BlackElo "2336"]
[PlyCount "180"]
[EventDate "2013.??.??"]
[EventCountry "POL"]
[WhiteTeam "Spanien"]
[BlackTeam "Polen"]
[WhiteTeamCountry "ESP"]
[BlackTeamCountry "POL"]
[TimeControl "40/5400+30:1800+30"]

1. d4 {[%emt 0:00:00]} d5 {[%emt 0:00:00]} 2. c4 {[%emt 0:00:02]} e6 {[%emt 0:
00:00]} 3. Nf3 {[%emt 0:01:33]} Nf6 {[%emt 0:00:19]} 4. e3 {[%emt 0:00:26]} Be7
{[%emt 0:00:26]} 5. b3 {[%emt 0:04:16]} O-O {[%emt 0:00:39]} 6. Bd3 {[%emt 0:
00:05]} b6 {[%emt 0:02:58]} 7. O-O {[%emt 0:00:13]} Bb7 {[%emt 0:02:49]} 8. Bb2
{[%emt 0:03:06]} c5 {[%emt 0:02:51]} 9. Nbd2 {[%emt 0:09:52]} Nc6 {[%emt 0:03:
24]} 10. Rc1 {[%emt 0:03:57]} cxd4 {[%emt 0:02:54]} 11. exd4 {[%emt 0:00:55]}
Rc8 {[%emt 0:01:48]} 12. Qe2 {[%emt 0:03:28]} Re8 {[%emt 0:07:26]} 13. Rfd1 {
[%emt 0:02:29]} Bf8 {[%emt 0:01:35]} 14. h3 {[%emt 0:12:56]} g6 {[%emt 0:02:15]
} 15. Qe3 {[%emt 0:03:17]} Ne7 {[%emt 0:12:19]} 16. c5 {[%emt 0:16:42]} Nf5 {
[%emt 0:03:57]} 17. Bxf5 {[%emt 0:01:01]} exf5 {[%emt 0:00:22]} 18. Ne5 {[%emt
0:05:16]} Nh5 {[%emt 0:02:06]} 19. Qf3 {[%emt 0:05:26]} bxc5 {[%emt 0:14:22]}
20. dxc5 {[%emt 0:00:11]} Rxc5 {[%emt 0:01:13]} 21. Rxc5 {[%emt 0:02:10]} Bxc5
{[%emt 0:00:06]} 22. Qc3 {[%emt 0:02:31]} Qb6 {[%emt 0:03:44]} 23. Nd3 {[%emt
0:02:00]} Bxf2+ {[%emt 0:03:35]} 24. Nxf2 {[%emt 0:00:04]} f6 {[%emt 0:00:03]}
25. Qd4 {[%emt 0:01:34]} Qc7 {[%emt 0:00:43]} 26. Nf3 {[%emt 0:01:36]} g5 {
[%emt 0:13:41]} 27. Re1 {[%emt 0:02:04]} Rxe1+ {[%emt 0:04:29]} 28. Nxe1 {
[%emt 0:00:01]} a5 {[%emt 0:03:13]} 29. Nfd3 {[%emt 0:02:48]} Qe7 {[%emt 0:01:
48]} 30. Kf2 {[%emt 0:01:42]} Qd6 {[%emt 0:03:44]} 31. Qe3 {[%emt 0:01:07]} Bc6
{[%emt 0:01:42]} 32. Qc5 {[%emt 0:02:21]} Qe6 {[%emt 0:01:28]} 33. Qe3 {[%emt
0:02:04]} Qd6 {[%emt 0:00:11]} 34. Bd4 {[%emt 0:00:30]} f4 {[%emt 0:00:12]} 35.
Qc1 {[%emt 0:03:22]} Ng3 {[%emt 0:00:12]} 36. Nf3 {[%emt 0:00:34]} Bd7 {[%emt
0:01:44]} 37. Qe1 {[%emt 0:00:52]} h5 {[%emt 0:02:31]} 38. Kg1 {[%emt 0:00:28]}
Bb5 {[%emt 0:00:36]} 39. Nc1 {[%emt 0:02:38]} g4 {[%emt 0:01:22]} 40. hxg4 {
[%emt 0:00:00]} hxg4 {[%emt 0:00:00]} 41. Qxa5 {[%emt 0:07:23]} Qc6 {[%emt 0:
22:32]} 42. Qc3 {[%emt 0:11:42]} Qxc3 {[%emt 0:01:34]} 43. Bxc3 {[%emt 0:00:02]
} gxf3 {[%emt 0:00:05]} 44. gxf3 {[%emt 0:00:16]} Kf7 {[%emt 0:00:10]} 45. Kf2
{[%emt 0:01:15]} Ke6 {[%emt 0:00:29]} 46. a4 {[%emt 0:00:21]} Ba6 {[%emt 0:00:
45]} 47. Na2 {[%emt 0:00:30]} Nf5 {[%emt 0:03:55]} 48. Nb4 {[%emt 0:00:21]} Bb7
{[%emt 0:00:01]} 49. Nd3 {[%emt 0:01:09]} d4 {[%emt 0:01:05]} 50. Bd2 {[%emt 0:
01:00]} Ba8 {[%emt 0:01:10]} 51. Nxf4+ {[%emt 0:00:32]} Kd6 {[%emt 0:00:18]}
52. Bb4+ {[%emt 0:00:56]} Kd7 {[%emt 0:00:22]} 53. Bc5 {[%emt 0:01:50]} Nh4 {
[%emt 0:00:17]} 54. Bxd4 {[%emt 0:01:30]} Nxf3 {[%emt 0:00:01]} 55. Bc3 {[%emt
0:00:56]} Ng5 {[%emt 0:00:12]} 56. Ke3 {[%emt 0:00:27]} Ne4 {[%emt 0:00:40]}
57. Bb4 {[%emt 0:00:13]} Kc7 {[%emt 0:03:42]} 58. Kd4 {[%emt 0:00:29]} Kb6 {
[%emt 0:00:15]} 59. Nd5+ {[%emt 0:01:25]} Bxd5 {[%emt 0:01:14]} 60. Kxd5 {
[%emt 0:00:01]} f5 {[%emt 0:00:33]} 61. Ke5 {[%emt 0:01:45]} Nf2 {[%emt 0:00:
56]} 62. Kxf5 {[%emt 0:00:17]} Nd3 {[%emt 0:00:20]} 63. Ba3 {[%emt 0:00:18]}
Ne1 {[%emt 0:00:13]} 64. Ke4 {[%emt 0:01:00]} Nc2 {[%emt 0:00:16]} 65. Bb2 {
[%emt 0:00:25]} Nb4 {[%emt 0:00:11]} 66. Bc3 {[%emt 0:00:34]} Na6 {[%emt 0:00:
21]} 67. Kd5 {[%emt 0:00:17]} Nc7+ {[%emt 0:00:19]} 68. Kc4 {[%emt 0:00:31]}
Na6 {[%emt 0:01:12]} 69. Bd2 {[%emt 0:00:42]} Kc6 {[%emt 0:01:11]} 70. Be3 {
[%emt 0:00:43]} Kb7 {[%emt 0:00:25]} 71. Kb5 {[%emt 0:01:16]} Nc7+ {[%emt 0:01:
12]} 72. Kc5 {[%emt 0:01:25]} Na6+ {[%emt 0:00:09]} 73. Kd6 {[%emt 0:00:33]}
Nb4 {[%emt 0:00:13]} 74. Bd2 {[%emt 0:01:28]} Nc6 {[%emt 0:00:23]} 75. Kc5 {
[%emt 0:01:12]} Ne5 {[%emt 0:00:08]} 76. Bc3 {[%emt 0:00:49]} Nc6 {[%emt 0:00:
14]} 77. a5 {[%emt 0:02:06]} Na7 {[%emt 0:00:17]} 78. b4 {[%emt 0:00:54]} Ka6 {
[%emt 0:00:30]} 79. Bb2 {[%emt 0:01:06]} Nb5 {[%emt 0:00:20]} 80. Be5 {[%emt 0:
00:18]} Na3 {[%emt 0:00:19]} 81. Bd4 {[%emt 0:01:13]} Nb5 {[%emt 0:00:12]} 82.
Bb2 {[%emt 0:00:25]} Na7 {[%emt 0:00:05]} 83. Kc4 {[%emt 0:00:28]} Nb5 {[%emt
0:00:09]} 84. Kb3 {[%emt 0:00:10]} Nc7 {[%emt 0:01:59]} 85. Ka4 {[%emt 0:00:18]
} Nb5 {[%emt 0:00:09]} 86. Be5 {[%emt 0:00:07]} Na7 {[%emt 0:00:14]} 87. Bd4 {
[%emt 0:00:16]} Nb5 {[%emt 0:00:13]} 88. Bc5 {[%emt 0:00:14]} Nc3+ {[%emt 0:00:
06]} 89. Kb3 {[%emt 0:00:06]} Nb5 {[%emt 0:00:04]} 90. Bb6 {[%emt 0:00:08]} Nd6
{[%emt 0:00:11]} 1/2-1/2

[Event "ETCC Women 2013"]
[Site "Warsaw"]
[Date "2013.11.11"]
[Round "4"]
[White "Beinenson, Katsiaryna"]
[Black "Haast, Anne"]
[Result "0-1"]
[ECO "B40"]
[WhiteElo "1964"]
[BlackElo "2262"]
[PlyCount "80"]
[EventDate "2013.??.??"]
[EventCountry "POL"]
[WhiteTeam "Weißrussland"]
[BlackTeam "Niederlande"]
[WhiteTeamCountry "BLR"]
[BlackTeamCountry "NED"]
[TimeControl "40/5400+30:1800+30"]

1. e4 {[%emt 0:00:00]} c5 {[%emt 0:00:00]} 2. Nf3 {[%emt 0:00:00]} e6 {[%emt 0:
00:32]} 3. c3 {[%emt 0:00:00]} d5 {[%emt 0:01:34]} 4. exd5 {[%emt 0:00:05]}
exd5 {[%emt 0:00:00]} 5. d4 {[%emt 0:00:06]} Nc6 {[%emt 0:00:40]} 6. Bb5 {
[%emt 0:00:13]} Bd6 {[%emt 0:01:39]} 7. dxc5 {[%emt 0:00:20]} Bxc5 {[%emt 0:00:
16]} 8. O-O {[%emt 0:00:18]} Nge7 {[%emt 0:01:07]} 9. Nbd2 {[%emt 0:00:26]} O-O
{[%emt 0:03:13]} 10. Nb3 {[%emt 0:00:14]} Bb6 {[%emt 0:00:50]} 11. Bd3 {[%emt
0:03:26]} Nf5 {[%emt 0:07:57]} 12. Bc2 {[%emt 0:13:34]} Qd6 {[%emt 0:04:56]}
13. Qd3 {[%emt 0:00:58]} g6 {[%emt 0:00:52]} 14. Rd1 {[%emt 0:08:17]} Be6 {
[%emt 0:05:55]} 15. a4 {[%emt 0:14:05]} a6 {[%emt 0:02:54]} 16. a5 {[%emt 0:03:
54]} Ba7 {[%emt 0:00:39]} 17. Ra4 {[%emt 0:01:09]} f6 {[%emt 0:10:26]} 18. Bf4
{[%emt 0:03:56]} Qd7 {[%emt 0:01:11]} 19. Raa1 {[%emt 0:18:45]} Rac8 {[%emt 0:
04:14]} 20. h3 {[%emt 0:03:02]} Rfe8 {[%emt 0:14:20]} 21. g4 {[%emt 0:07:19]}
Nd6 {[%emt 0:01:30]} 22. Nbd4 {[%emt 0:04:49]} Ne4 {[%emt 0:02:49]} 23. Qf1 {
[%emt 0:04:53]} Bxg4 {[%emt 0:07:34]} 24. hxg4 {[%emt 0:07:51]} Qxg4+ {[%emt 0:
00:35]} 25. Bg3 {[%emt 0:00:35]} Nxg3 {[%emt 0:01:49]} 26. fxg3 {[%emt 0:01:13]
} Nxd4 {[%emt 0:01:35]} 27. Nxd4 {[%emt 0:00:59]} Qxg3+ {[%emt 0:00:41]} 28.
Kh1 {[%emt 0:00:39]} Qh4+ {[%emt 0:11:20]} 29. Kg2 {[%emt 0:02:00]} Re3 {[%emt
0:01:54]} 30. Rd3 {[%emt 0:01:08]} Bxd4 {[%emt 0:01:27]} 31. Rxe3 {[%emt 0:00:
38]} Bxe3 {[%emt 0:00:23]} 32. Qf3 {[%emt 0:00:29]} Qg5+ {[%emt 0:01:09]} 33.
Qg3 {[%emt 0:00:14]} Qxg3+ {[%emt 0:02:17]} 34. Kxg3 {[%emt 0:00:05]} d4 {
[%emt 0:00:58]} 35. c4 {[%emt 0:01:10]} Kg7 {[%emt 0:00:28]} 36. Be4 {[%emt 0:
00:24]} Rc7 {[%emt 0:02:19]} 37. Ra3 {[%emt 0:00:18]} f5 {[%emt 0:01:49]} 38.
Bd5 {[%emt 0:00:05]} Bd2 {[%emt 0:00:24]} 39. Rd3 {[%emt 0:00:56]} Bxa5 {[%emt
0:00:48]} 40. Rxd4 {[%emt 0:00:00]} h5 {[%emt 0:00:00]} 0-1

[Event "ETCC Women 2013"]
[Site "Warsaw"]
[Date "2013.11.11"]
[Round "4"]
[White "Bulmaga, Irina"]
[Black "Sebag, Marie"]
[Result "1-0"]
[ECO "B90"]
[WhiteElo "2399"]
[BlackElo "2510"]
[PlyCount "55"]
[EventDate "2013.??.??"]
[EventCountry "POL"]
[WhiteTeam "Rumänien"]
[BlackTeam "Frankreich"]
[WhiteTeamCountry "ROU"]
[BlackTeamCountry "FRA"]
[TimeControl "40/5400+30:1800+30"]

1. e4 {[%emt 0:00:00]} c5 2. Nf3 d6 3. d4 cxd4 4. Nxd4 Nf6 {[%emt 0:00:00]} 5.
Nc3 {[%emt 0:00:01]} a6 {[%emt 0:00:00]} 6. Be3 {[%emt 0:00:07]} e5 {[%emt 0:
00:00]} 7. Nb3 {[%emt 0:00:08]} Be6 {[%emt 0:00:00]} 8. f3 {[%emt 0:00:12]} Be7
{[%emt 0:00:06]} 9. Qd2 {[%emt 0:00:09]} O-O {[%emt 0:00:31]} 10. O-O-O {[%emt
0:00:11]} a5 {[%emt 0:00:07]} 11. Qe1 {[%emt 0:00:14]} Qc8 {[%emt 0:00:35]} 12.
a3 {[%emt 0:00:12]} a4 {[%emt 0:05:14]} 13. Nd2 {[%emt 0:00:09]} d5 {[%emt 0:
01:04]} 14. exd5 {[%emt 0:00:20]} Nxd5 {[%emt 0:00:34]} 15. Nxd5 {[%emt 0:00:
08]} Bxd5 {[%emt 0:00:05]} 16. Ne4 {[%emt 0:00:15]} Rd8 {[%emt 0:29:16]} 17.
Nc3 {[%emt 0:12:06]} Be6 {[%emt 0:06:10]} 18. Rxd8+ {[%emt 0:13:44]} Bxd8 {
[%emt 0:04:26]} 19. Qg3 {[%emt 0:11:21]} Nc6 {[%emt 0:14:25]} 20. Bh6 {[%emt 0:
04:06]} g6 {[%emt 0:00:40]} 21. Bb5 {[%emt 0:13:57]} f6 {[%emt 0:04:57]} 22.
Rd1 {[%emt 0:10:50]} Nd4 {[%emt 0:01:32]} 23. Rxd4 {[%emt 0:08:42]} exd4 {
[%emt 0:00:34]} 24. Qd6 {[%emt 0:00:26]} Ba5 {[%emt 0:13:05]} 25. Nd5 {[%emt 0:
01:39]} d3 {[%emt 0:05:44]} 26. Ne7+ {[%emt 0:01:09]} Kf7 {[%emt 0:00:01]} 27.
Nxc8 {[%emt 0:00:35]} Rxc8 {[%emt 0:00:01]} 28. Bd7 {[%emt 0:02:19]} 1-0

[Event "ETCC Women 2013"]
[Site "Warsaw"]
[Date "2013.11.11"]
[Round "4"]
[White "Cemhan, Kardelen"]
[Black "Barbier, Wiebke"]
[Result "1-0"]
[ECO "B00"]
[WhiteElo "1993"]
[BlackElo "1945"]
[PlyCount "89"]
[EventDate "2013.??.??"]
[EventCountry "POL"]
[WhiteTeam "Türkei"]
[BlackTeam "Belgien"]
[WhiteTeamCountry "TUR"]
[BlackTeamCountry "BEL"]
[TimeControl "40/5400+30:1800+30"]

1. e4 {[%emt 0:00:00]} d6 {[%emt 0:00:00]} 2. d4 {[%emt 0:00:00]} Nf6 {[%emt 0:
00:00]} 3. f3 {[%emt 0:00:00]} e5 {[%emt 0:00:00]} 4. Be3 {[%emt 0:00:00]} Be7
{[%emt 0:00:10]} 5. c4 {[%emt 0:00:02]} exd4 {[%emt 0:02:47]} 6. Qxd4 {[%emt 0:
00:13]} Nc6 {[%emt 0:00:52]} 7. Qd2 {[%emt 0:00:07]} O-O {[%emt 0:00:42]} 8.
Nc3 {[%emt 0:00:21]} Re8 {[%emt 0:08:03]} 9. Nge2 {[%emt 0:03:33]} a5 {[%emt 0:
06:44]} 10. Nf4 {[%emt 0:04:35]} Ne5 {[%emt 0:04:16]} 11. Be2 {[%emt 0:01:11]}
Be6 {[%emt 0:03:17]} 12. b3 {[%emt 0:05:31]} c6 {[%emt 0:05:17]} 13. O-O {
[%emt 0:01:22]} Qc7 {[%emt 0:00:42]} 14. Rfd1 {[%emt 0:02:06]} Rad8 {[%emt 0:
05:10]} 15. Rac1 {[%emt 0:01:12]} Bf8 {[%emt 0:14:18]} 16. Ncd5 {[%emt 0:06:50]
} Nxd5 {[%emt 0:10:25]} 17. cxd5 {[%emt 0:07:07]} Bd7 {[%emt 0:01:10]} 18. dxc6
{[%emt 0:01:08]} bxc6 {[%emt 0:00:55]} 19. Nd5 {[%emt 0:00:56]} Qb7 {[%emt 0:
02:29]} 20. Nb6 {[%emt 0:01:21]} d5 {[%emt 0:11:01]} 21. Qxa5 {[%emt 0:06:24]}
dxe4 {[%emt 0:02:53]} 22. fxe4 {[%emt 0:02:00]} c5 {[%emt 0:03:23]} 23. Nd5 {
[%emt 0:03:56]} Nc6 {[%emt 0:07:03]} 24. Qc3 {[%emt 0:06:53]} Qa7 {[%emt 0:02:
39]} 25. Bxc5 {[%emt 0:03:17]} Qxa2 {[%emt 0:00:28]} 26. Bxf8 {[%emt 0:07:54]}
Rxf8 {[%emt 0:01:29]} 27. Bb5 {[%emt 0:02:11]} Qa7+ {[%emt 0:00:48]} 28. Kh1 {
[%emt 0:00:02]} Nb8 {[%emt 0:01:11]} 29. Bc4 {[%emt 0:07:16]} Be6 {[%emt 0:01:
33]} 30. Qg3 {[%emt 0:01:38]} Kh8 {[%emt 0:01:35]} 31. Ne3 {[%emt 0:09:16]}
Bxc4 {[%emt 0:01:24]} 32. bxc4 {[%emt 0:00:03]} Nc6 {[%emt 0:00:43]} 33. Nf5 {
[%emt 0:00:33]} f6 {[%emt 0:00:08]} 34. Rd6 {[%emt 0:03:40]} Ne5 {[%emt 0:00:
35]} 35. c5 {[%emt 0:00:46]} Rc8 {[%emt 0:00:47]} 36. Rd5 {[%emt 0:03:48]} Rc7
{[%emt 0:01:12]} 37. h3 {[%emt 0:00:41]} g6 {[%emt 0:00:07]} 38. Nd6 {[%emt 0:
00:31]} Kg7 {[%emt 0:00:24]} 39. Nb5 {[%emt 0:00:24]} Qb7 {[%emt 0:00:46]} 40.
Nxc7 {[%emt 0:00:00]} Qxc7 {[%emt 0:00:00]} 41. c6 {[%emt 0:01:00]} Rc8 {[%emt
0:01:00]} 42. Rb5 {[%emt 0:03:56]} Qd6 {[%emt 0:02:07]} 43. Rb7+ {[%emt 0:00:
48]} Rc7 {[%emt 0:00:04]} 44. Qc3 {[%emt 0:04:22]} Qe7 {[%emt 0:01:12]} 45. Qa5
{[%emt 0:00:42]} 1-0

[Event "ETCC Women 2013"]
[Site "Warsaw"]
[Date "2013.11.11"]
[Round "4"]
[White "Cmilyte, Viktorija"]
[Black "Paehtz, Elisabeth"]
[Result "1/2-1/2"]
[ECO "A11"]
[WhiteElo "2506"]
[BlackElo "2449"]
[PlyCount "80"]
[EventDate "2013.??.??"]
[EventCountry "POL"]
[WhiteTeam "Litauen"]
[BlackTeam "Deutschland"]
[WhiteTeamCountry "LTU"]
[BlackTeamCountry "GER"]
[TimeControl "40/5400+30:1800+30"]

1. c4 {[%emt 0:00:00]} c6 {[%emt 0:00:00]} 2. Nf3 {[%emt 0:00:00]} d5 {[%emt 0:
00:00]} 3. e3 {[%emt 0:00:00]} Nf6 {[%emt 0:00:00]} 4. b3 {[%emt 0:00:45]} Bg4
{[%emt 0:01:29]} 5. Bb2 {[%emt 0:00:15]} e6 {[%emt 0:00:25]} 6. Be2 {[%emt 0:
02:48]} Nbd7 {[%emt 0:00:43]} 7. h3 {[%emt 0:00:24]} Bh5 {[%emt 0:01:48]} 8. d3
{[%emt 0:01:52]} h6 {[%emt 0:11:50]} 9. Nbd2 {[%emt 0:07:52]} Bd6 {[%emt 0:00:
38]} 10. O-O {[%emt 0:02:04]} O-O {[%emt 0:04:37]} 11. cxd5 {[%emt 0:00:47]}
cxd5 {[%emt 0:08:30]} 12. Nd4 {[%emt 0:02:04]} Bxe2 {[%emt 0:10:06]} 13. Qxe2 {
[%emt 0:02:02]} Qa5 {[%emt 0:00:09]} 14. a3 {[%emt 0:06:18]} Qa6 {[%emt 0:03:
24]} 15. b4 {[%emt 0:05:42]} Nb6 {[%emt 0:08:23]} 16. b5 {[%emt 0:07:10]} Qa5 {
[%emt 0:00:19]} 17. a4 {[%emt 0:05:23]} Nbd7 {[%emt 0:00:03]} 18. f4 {[%emt 0:
01:16]} Bb4 {[%emt 0:03:38]} 19. N2b3 {[%emt 0:06:42]} Qd8 {[%emt 0:00:11]} 20.
a5 {[%emt 0:03:33]} a6 {[%emt 0:01:28]} 21. b6 {[%emt 0:00:51]} Rc8 {[%emt 0:
03:11]} 22. Rfc1 {[%emt 0:05:24]} Qe7 {[%emt 0:01:42]} 23. Nf3 {[%emt 0:02:02]}
Nb8 {[%emt 0:05:03]} 24. Ne5 {[%emt 0:01:18]} Bd6 {[%emt 0:02:39]} 25. Rc2 {
[%emt 0:09:27]} Rxc2 {[%emt 0:05:28]} 26. Qxc2 {[%emt 0:00:05]} Nfd7 {[%emt 0:
00:39]} 27. d4 {[%emt 0:08:39]} Re8 {[%emt 0:01:22]} 28. Rc1 {[%emt 0:02:26]}
f6 {[%emt 0:00:35]} 29. Nd3 {[%emt 0:02:40]} Nc6 {[%emt 0:01:12]} 30. Qd2 {
[%emt 0:00:51]} Rc8 {[%emt 0:02:23]} 31. Ndc5 {[%emt 0:00:33]} Nxc5 {[%emt 0:
00:10]} 32. dxc5 {[%emt 0:00:58]} Bb8 {[%emt 0:00:06]} 33. Rd1 {[%emt 0:02:50]}
Rd8 {[%emt 0:01:26]} 34. Qd3 {[%emt 0:01:14]} e5 {[%emt 0:02:11]} 35. g3 {
[%emt 0:01:57]} Qe6 {[%emt 0:03:21]} 36. Kg2 {[%emt 0:00:21]} Nb4 {[%emt 0:01:
43]} 37. Qc3 {[%emt 0:00:48]} Nc6 {[%emt 0:00:10]} 38. Qd3 {[%emt 0:00:19]} Nb4
{[%emt 0:00:04]} 39. Qc3 {[%emt 0:00:03]} Nc6 {[%emt 0:00:02]} 40. Qd3 {[%emt
0:00:00]} Nb4 {[%emt 0:00:00]} 1/2-1/2

[Event "ETCC Women 2013"]
[Site "Warsaw"]
[Date "2013.11.11"]
[Round "4"]
[White "Collas, Silvia"]
[Black "Cosma, Elena-Luminita"]
[Result "0-1"]
[ECO "A13"]
[WhiteElo "2292"]
[BlackElo "2326"]
[PlyCount "88"]
[EventDate "2013.??.??"]
[EventCountry "POL"]
[WhiteTeam "Frankreich"]
[BlackTeam "Rumänien"]
[WhiteTeamCountry "FRA"]
[BlackTeamCountry "ROU"]
[TimeControl "40/5400+30:1800+30"]

1. c4 {[%emt 0:00:00]} e6 {[%emt 0:00:00]} 2. Nf3 {[%emt 0:00:00]} d5 {[%emt 0:
00:00]} 3. g3 {[%emt 0:00:10]} Nf6 {[%emt 0:00:36]} 4. Bg2 {[%emt 0:00:23]}
dxc4 {[%emt 0:00:36]} 5. Qa4+ {[%emt 0:00:31]} c6 {[%emt 0:01:21]} 6. Qxc4 {
[%emt 0:00:21]} b5 {[%emt 0:00:18]} 7. Qc2 {[%emt 0:00:06]} Bb7 {[%emt 0:00:03]
} 8. d4 {[%emt 0:01:10]} Nbd7 {[%emt 0:00:26]} 9. Ne5 {[%emt 0:01:47]} Nxe5 {
[%emt 0:07:26]} 10. dxe5 {[%emt 0:00:07]} Nd7 {[%emt 0:00:02]} 11. O-O {[%emt
0:02:40]} Qc8 {[%emt 0:07:03]} 12. Nc3 {[%emt 0:03:38]} c5 {[%emt 0:09:11]} 13.
Ne4 {[%emt 0:03:40]} Bd5 {[%emt 0:12:15]} 14. Rd1 {[%emt 0:09:31]} Qc6 {[%emt
0:11:36]} 15. Nd6+ {[%emt 0:16:29]} Bxd6 {[%emt 0:00:05]} 16. e4 {[%emt 0:00:
04]} Bb3 {[%emt 0:03:21]} 17. axb3 {[%emt 0:00:17]} Be7 {[%emt 0:02:36]} 18. h4
{[%emt 0:18:55]} h6 {[%emt 0:00:33]} 19. Bd2 {[%emt 0:06:39]} O-O {[%emt 0:01:
29]} 20. Ba5 {[%emt 0:00:16]} Nb6 {[%emt 0:07:40]} 21. f4 {[%emt 0:00:18]} Rfd8
{[%emt 0:03:22]} 22. f5 {[%emt 0:00:26]} c4 {[%emt 0:02:27]} 23. b4 {[%emt 0:
01:06]} Rac8 {[%emt 0:07:23]} 24. Kh2 {[%emt 0:04:33]} Rxd1 {[%emt 0:10:49]}
25. Rxd1 {[%emt 0:00:04]} Rd8 {[%emt 0:03:18]} 26. Rxd8+ {[%emt 0:04:04]} Bxd8
{[%emt 0:00:07]} 27. Qd2 {[%emt 0:00:03]} Bc7 {[%emt 0:03:28]} 28. Qd4 {[%emt
0:00:16]} Nd7 {[%emt 0:02:51]} 29. Qxa7 {[%emt 0:08:47]} Bxe5 {[%emt 0:00:07]}
30. Qf2 {[%emt 0:00:22]} Qd6 {[%emt 0:00:25]} 31. fxe6 {[%emt 0:03:39]} Qxe6 {
[%emt 0:01:05]} 32. Bh3 {[%emt 0:04:22]} Qd6 {[%emt 0:00:13]} 33. Kg2 {[%emt 0:
00:30]} g6 {[%emt 0:00:49]} 34. Bxd7 {[%emt 0:03:28]} Qxd7 {[%emt 0:00:04]} 35.
Bb6 {[%emt 0:00:02]} Qd3 {[%emt 0:00:26]} 36. Be3 {[%emt 0:02:38]} Qxe4+ {
[%emt 0:00:10]} 37. Kg1 {[%emt 0:00:37]} Qb1+ {[%emt 0:00:31]} 38. Kg2 {[%emt
0:00:04]} Bg7 {[%emt 0:00:13]} 39. Qf4 {[%emt 0:01:42]} Qxb2+ {[%emt 0:00:21]}
40. Kh3 {[%emt 0:00:00]} Qxb4 {[%emt 0:00:00]} 41. h5 {[%emt 0:02:18]} Qb1 {
[%emt 0:07:05]} 42. g4 {[%emt 0:00:56]} Qd3 {[%emt 0:01:35]} 43. Kg2 {[%emt 0:
02:12]} b4 {[%emt 0:01:21]} 44. Kf2 {[%emt 0:00:37]} b3 {[%emt 0:00:45]} 0-1

[Event "ETCC Women 2013"]
[Site "Warsaw"]
[Date "2013.11.11"]
[Round "4"]
[White "Dierckens, Sarah"]
[Black "Gurcan, Aytolun"]
[Result "1-0"]
[ECO "B48"]
[WhiteElo "1872"]
[BlackElo "1745"]
[PlyCount "73"]
[EventDate "2013.??.??"]
[EventCountry "POL"]
[WhiteTeam "Belgien"]
[BlackTeam "Türkei"]
[WhiteTeamCountry "BEL"]
[BlackTeamCountry "TUR"]
[TimeControl "40/5400+30:1800+30"]

1. e4 {[%emt 0:00:00]} c5 {[%emt 0:00:00]} 2. Nf3 {[%emt 0:00:00]} Nc6 {[%emt
0:00:00]} 3. d4 {[%emt 0:00:00]} cxd4 {[%emt 0:00:00]} 4. Nxd4 {[%emt 0:00:00]}
Qc7 {[%emt 0:00:00]} 5. Nc3 {[%emt 0:00:00]} e6 {[%emt 0:00:04]} 6. Be3 {[%emt
0:00:29]} a6 {[%emt 0:00:07]} 7. Qd2 {[%emt 0:00:23]} Nf6 {[%emt 0:00:09]} 8.
Be2 {[%emt 0:05:04]} Bb4 {[%emt 0:02:44]} 9. f3 {[%emt 0:02:20]} Ne7 {[%emt 0:
01:47]} 10. O-O {[%emt 0:01:45]} O-O {[%emt 0:02:42]} 11. a3 {[%emt 0:05:44]}
Ba5 {[%emt 0:03:33]} 12. b4 {[%emt 0:02:56]} Bb6 {[%emt 0:01:10]} 13. f4 {
[%emt 0:13:34]} e5 {[%emt 0:20:12]} 14. fxe5 {[%emt 0:04:53]} Qxe5 {[%emt 0:01:
07]} 15. Nf3 {[%emt 0:02:16]} Bxe3+ {[%emt 0:01:06]} 16. Qxe3 {[%emt 0:00:06]}
Qc7 {[%emt 0:01:53]} 17. Na4 {[%emt 0:13:16]} d5 {[%emt 0:06:51]} 18. Nb6 {
[%emt 0:10:03]} Rb8 {[%emt 0:00:28]} 19. Nxc8 {[%emt 0:05:41]} Rbxc8 {[%emt 0:
00:29]} 20. Ng5 {[%emt 0:04:56]} Qe5 {[%emt 0:06:22]} 21. Qf4 {[%emt 0:06:36]}
Qxf4 {[%emt 0:02:57]} 22. Rxf4 {[%emt 0:00:01]} Ng6 {[%emt 0:01:52]} 23. Rff1 {
[%emt 0:05:20]} dxe4 {[%emt 0:00:30]} 24. c4 {[%emt 0:01:33]} a5 {[%emt 0:06:
33]} 25. c5 {[%emt 0:02:17]} Rfd8 {[%emt 0:02:28]} 26. Rab1 {[%emt 0:03:44]}
Rd2 {[%emt 0:01:59]} 27. Bc4 {[%emt 0:02:59]} Ne5 {[%emt 0:00:15]} 28. Bb3 {
[%emt 0:01:02]} h6 {[%emt 0:03:25]} 29. Rxf6 {[%emt 0:01:32]} hxg5 {[%emt 0:09:
38]} 30. Rf5 {[%emt 0:00:16]} Re8 {[%emt 0:00:22]} 31. Re1 {[%emt 0:02:37]} g6
{[%emt 0:01:07]} 32. Rxg5 {[%emt 0:00:59]} Nd3 {[%emt 0:00:59]} 33. Rxg6+ {
[%emt 0:01:49]} Kh7 {[%emt 0:02:12]} 34. Rd6 {[%emt 0:00:36]} e3 {[%emt 0:01:
16]} 35. Rxd3 {[%emt 0:01:58]} Rxd3 {[%emt 0:01:26]} 36. Bc2 {[%emt 0:00:00]}
Red8 {[%emt 0:00:15]} 37. Rxe3 {[%emt 0:00:09]} 1-0

[Event "ETCC Women 2013"]
[Site "Warsaw"]
[Date "2013.11.11"]
[Round "4"]
[White "Dzagnidze, Nana"]
[Black "Bojkovic, Natasa"]
[Result "1/2-1/2"]
[ECO "A45"]
[WhiteElo "2556"]
[BlackElo "2405"]
[PlyCount "65"]
[EventDate "2013.??.??"]
[EventCountry "POL"]
[WhiteTeam "Georgien"]
[BlackTeam "Serbien"]
[WhiteTeamCountry "GEO"]
[BlackTeamCountry "SRB"]
[TimeControl "40/5400+30:1800+30"]

1. d4 {[%emt 0:00:00]} Nf6 {[%emt 0:00:00]} 2. Bg5 {[%emt 0:00:00]} e6 {[%emt
0:00:00]} 3. e4 {[%emt 0:00:00]} h6 {[%emt 0:00:27]} 4. Bxf6 {[%emt 0:00:04]}
Qxf6 {[%emt 0:00:02]} 5. c3 {[%emt 0:00:08]} d6 {[%emt 0:02:15]} 6. Bd3 {[%emt
0:00:42]} e5 {[%emt 0:02:16]} 7. Ne2 {[%emt 0:00:45]} g6 {[%emt 0:01:02]} 8.
O-O {[%emt 0:00:21]} Bg7 {[%emt 0:02:43]} 9. f4 {[%emt 0:01:06]} Qd8 {[%emt 0:
04:48]} 10. Nd2 {[%emt 0:14:13]} O-O {[%emt 0:21:29]} 11. Qb3 {[%emt 0:30:05]}
exd4 {[%emt 0:08:19]} 12. cxd4 {[%emt 0:00:31]} Bg4 {[%emt 0:03:44]} 13. f5 {
[%emt 0:08:58]} Bxe2 {[%emt 0:06:51]} 14. Bxe2 {[%emt 0:00:13]} g5 {[%emt 0:04:
36]} 15. f6 {[%emt 0:10:54]} Bxf6 {[%emt 0:00:18]} 16. e5 {[%emt 0:00:45]} dxe5
{[%emt 0:01:42]} 17. dxe5 {[%emt 0:10:24]} Qxd2 {[%emt 0:15:44]} 18. Rxf6 {
[%emt 0:00:48]} Qxe2 {[%emt 0:06:09]} 19. Raf1 {[%emt 0:00:32]} Nc6 {[%emt 0:
14:01]} 20. Rxf7 {[%emt 0:03:46]} Rxf7 {[%emt 0:00:00]} 21. Qxf7+ Kh8 22. Qf6+
{[%emt 0:01:36]} Kh7 {[%emt 0:00:07]} 23. Qf5+ {[%emt 0:00:39]} Kg7 {[%emt 0:
03:03]} 24. Qf7+ {[%emt 0:01:25]} Kh8 {[%emt 0:00:01]} 25. Qg6 {[%emt 0:01:16]}
Qe3+ {[%emt 0:00:17]} 26. Kh1 {[%emt 0:00:06]} Qxe5 {[%emt 0:02:18]} 27. Qxh6+
{[%emt 0:00:10]} Kg8 {[%emt 0:00:00]} 28. Qg6+ {[%emt 0:00:10]} Kh8 {[%emt 0:
00:27]} 29. h3 {[%emt 0:04:49]} Rd8 {[%emt 0:00:46]} 30. Qh5+ {[%emt 0:00:56]}
Kg8 {[%emt 0:00:03]} 31. Qf7+ Kh8 32. Qh5+ {[%emt 0:00:41]} Kg8 {[%emt 0:00:04]
} 33. Qf7+ {[%emt 0:00:14]} 1/2-1/2